[Event "Fagernes GM Open Autumn 2024"]
[Site "Fagernes"]
[Date "2024.10.11"]
[Round "7.30"]
[White "Juodziukynas, Aidas"]
[Black "Rustan, Elias Buschmann"]
[Result "1-0"]
[ECO "E09"]
[WhiteElo "1917"]
[BlackElo "1941"]
[Annotator "RC"]
[PlyCount "99"]
[EventDate "2024.10.03"]
[EventType "swiss"]
[EventCountry "NOR"]
[SourceTitle "playchess.com"]
[Source "ChessBase"]
[SourceQuality "1"]
[TimeControl "40/6000:2400+30"]

1. d4 {[%emt 0:04:46]} Nf6 {[%emt 0:00:00]} 2. Nf3 {[%emt 0:00:00]} e6 {[%emt 0:00:00]} 3. g3 {[%emt 0:00:00]} b6 {[%emt 0:00:00]} 4. Bg2 {[%emt 0:00:00]} Bb7 {[%emt 0:00:00]} 5. O-O {[%emt 0:00:00]} Be7 {[%emt 0:00:00]} 6. c4 {[%emt 0:00:00]} c6 {[%emt 0:01:31]} 7. Nbd2 {[%emt 0:03:27]} d5 {[%emt 0:03:24]} 8. b3 {[%emt 0:03:32]} O-O {[%emt 0:00:12]} 9. Bb2 {[%emt 0:00:00]} Nbd7 {[%emt 0:08:38]} 10. Qc2 {[%emt 0:03:12]} Rc8 {[%emt 0:06:31]} 11. e4 {[%emt 0:03:12]} dxe4 {[%emt 0:08:08]} 12. Nxe4 {[%emt 0:07:11]} Nxe4 {[%emt 0:04:13]} 13. Qxe4 {[%emt 0:00:00]} Qc7 {[%emt 0:02:05]} 14. Qe2 {[%emt 0:06:06]} Bf6 {[%emt 0:04:11]} 15. Ne5 {[%emt 0:03:53]} c5 {[%emt 0:04:59]} 16. Bxb7 {[%emt 0:05:03]} Qxb7 {[%emt 0:00:19]} 17. Nxd7 {[%emt 0:03:36]} Qxd7 {[%emt 0:00:00]} 18. dxc5 {[%emt 0:00:50]} Bxb2 {[%emt 0:00:00]} 19. Qxb2 {[%emt 0:00:00]} bxc5 {[%emt 0:04:34]} 20. Rad1 {[%emt 0:00:00]} Qc7 {[%emt 0:02:57]} 21. Rd3 {[%emt 0:00:00]} Rfd8 {[%emt 0:03:04]} 22. Rfd1 {[%emt 0:00:00]} Rxd3 {[%emt 0:05:55]} 23. Rxd3 {[%emt 0:00:00]} Rd8 {[%emt 0:00:43]} 24. Qe5 {[%emt 0:00:00]} Qa5 {[%emt 0:07:18]} 25. Rxd8+ {[%emt 0:01:13]} Qxd8 {[%emt 0:00:00]} 26. Qxc5 {[%emt 0:00:00]} a5 {[%emt 0:02:25]} 27. Qc6 {[%emt 0:00:18]} h5 {[%emt 0:01:42]} 28. h4 {[%emt 0:00:16]} g5 {[%emt 0:00:19]} 29. hxg5 {[%emt 0:00:26]} Qxg5 {[%emt 0:02:22]} 30. Qe8+ {[%emt 0:00:05]} Kg7 {[%emt 0:00:25]} 31. Qb5 {[%emt 0:00:00]} Qd2 {[%emt 0:06:04]} 32. Qxh5 {[%emt 0:05:22]} Qxa2 {[%emt 0:00:35]} 33. Qe5+ {[%emt 0:00:15]} Kg8 {[%emt 0:02:33]} 34. Qe3 {[%emt 0:01:26]} a4 {[%emt 0:02:42]} 35. bxa4 {[%emt 0:00:07]} Qxa4 {[%emt 0:00:39]} 36. Qd4 {[%emt 0:03:49]} Qc6 {[%emt 0:04:34]} 37. Kh2 {[%emt 0:02:53]} Kf8 {[%emt 0:05:13]} 38. c5 {[%emt 0:03:30]} Qd5 {[%emt 0:00:44]} 39. Qxd5 {[%emt 0:00:12]} exd5 {[%emt 0:00:00]} 40. Kg2 {[%emt 0:00:00]} Ke7 {[%emt 0:00:06]} 41. Kf3 {[%emt 0:40:41]} Ke6 {[%emt 0:02:54]} 42. Ke3 {[%emt 0:00:00]} Ke5 {[%emt 0:00:20]} 43. f4+ {[%emt 0:00:00]} Ke6 {[%emt 0:01:06]} 44. g4 {[%emt 0:00:00]} Ke7 {[%emt 0:00:31]} 45. Kd4 {[%emt 0:00:00]} Ke6 {[%emt 0:00:03]} 46. f5+ {[%emt 0:00:00]} Kf6 {[%emt 0:01:21]} 47. c6 {[%emt 0:00:00]} Ke7 {[%emt 0:00:13]} 48. Kxd5 {[%emt 0:00:00]} f6 {[%emt 0:00:07]} 49. c7 {[%emt 0:00:00]} Kd7 {[%emt 0:00:01]} 50. c8=Q+ {[%emt 0:00:00]} 1-0

[Event "Fagernes GM Open Autumn 2024"]
[Site "Fagernes"]
[Date "2024.10.12"]
[Round "8.1"]
[White "Willow, Jonah B"]
[Black "Das, Sayantan"]
[Result "1-0"]
[ECO "B28"]
[WhiteElo "2420"]
[BlackElo "2471"]
[Annotator "TA"]
[PlyCount "85"]
[EventDate "2024.10.03"]
[EventType "swiss"]
[EventCountry "NOR"]
[SourceTitle "playchess.com"]
[Source "ChessBase"]
[SourceQuality "1"]
[TimeControl "40/6000:2400+30"]

{[%evp 14,85,77,80,76,72,104,97,91,93,93,89,84,87,93,42,29,0,0,0,31,16,77,0,0,0,0,0,0,0,10,12,64,10,402,393,365,373,476,462,566,516,564,508,572,572,531,549,556,543,553,679,683,653,29975,29976,29976,29977,29988,29989,29989,5393,29974,5409,5409,4652,2955,2934,12827,12831,7991,7347,12415,9808]} 1. e4 {[%emt 0:00:00]} e6 {[%emt 0:04:03]} 2. d4 {[%emt 0:00:00]} d5 {[%emt 0:00:00]} 3. e5 {[%emt 0:00:00]} c5 {[%emt 0:00:00]} 4. c3 {[%emt 0:00:00]} Bd7 {[%emt 0:00:06]} 5. Nf3 {[%emt 0:00:00]} a6 {[%emt 0:00:10]} 6. Be2 {[%emt 0:05:43]} Bb5 {[%emt 0:00:32] B28: Sicilian: 2 Nf3 a6 (O'Kelly Variation).} 7. Bxb5+ {[%emt 0:01:22]} axb5 {[%emt 0:00:00]} 8. dxc5 {[%emt 0:00:14]} Bxc5 {[%emt 0:21:13]} 9. b4 $1 {[%emt 0:07:18]} Bb6 {[%emt 0:09:28]} 10. Na3 {[%emt 0:01:19]} Ne7 {[%emt 0:00:27]} 11. Nxb5 {[%emt 0:00:57]} O-O {[%emt 0:00:00]} 12. O-O {[%emt 0:01:07]} Ng6 {[%emt 0:01:35]} 13. Qe2 {[%emt 0:09:06]} Nd7 {[%emt 0:04:32]} 14. Re1 $146 {[%emt 0:11:41]} (14. c4 $1 $16) ({Predecessor:} 14. a4 Bc7 15. Bg5 Qb8 16. Nxc7 Qxc7 17. Rfe1 Qxc3 18. Bd2 Qc4 19. Qe3 Rfc8 20. Rec1 {1-0 Binham,T (2345)-Gavrilakis,N (2295) Olympiad-25 Luzern 1982 (4)}) 14... Bc7 $14 {[%emt 0:12:31]} 15. Nxc7 {[%emt 0:09:31]} Qxc7 {[%emt 0:00:00]} 16. Bd2 {[%emt 0:00:00]} Ra4 {[%emt 0:09:02]} 17. h4 {[%emt 0:07:09]} h5 {[%emt 0:10:22]} (17... Rfa8 $11 {remains equal.}) 18. Ng5 {[%emt 0:10:50]} ({Better is} 18. Nd4 $1 $16) 18... Qc4 $1 $11 {[%emt 0:00:00]} 19. Qxh5 {[%emt 0:05:36]} Qxh4 {[%emt 0:00:00]} 20. Qd1 {[%emt 0:04:11]} Rfa8 {[%emt 0:01:16]} 21. c4 {[%emt 0:02:11]} (21. g3 $5 Qc4 $8 22. Qh5 $11) 21... Qxc4 {[%emt 0:09:26]} 22. Rc1 $1 {[%emt 0:00:14]} Qd4 {[%emt 0:00:31]} ({Black should play} 22... Qb5 $11) 23. Rc7 $1 $14 {[%emt 0:01:01]} (23. Nf3 Qg4 $17 (23... Qb6 24. Rc8+ Rxc8 25. Qxa4 $15) (23... Qb6 24. Rc8+ Rxc8 25. Qxa4 $15)) 23... Ngxe5 $2 {[%emt 0:09:21][%mdl 8192]} (23... Ndxe5 24. Qh5 Qh4 (24... Qxd2 25. Qh7+ Kf8 26. Rxe5) 25. Qxh4 Nxh4 26. Rxe5 $16) (23... Ndf8 $1 $11 {and Black is okay.}) 24. Rxe5 $18 {[%emt 0:07:43]} Qxe5 {[%emt 0:04:45] [#]} (24... Nxe5 25. Qxa4 Rf8 (25... Qa1+ $2 26. Bc1 $18) 26. Qc2 $18) 25. Qh5 $1 {[%emt 0:01:01]} (25. Rxd7 $2 Rxa2 26. Bc1 (26. Rxf7 $2 Rxd2 $19) 26... Ra1 $19) 25... Qf5 {[%emt 0:00:06]} (25... Qxc7 $2 26. Qxf7+ Kh8 27. Qh5+ (27. Qxe6 $2 Nf8 $19) 27... Kg8 28. Qh7+ (28. Nxe6 $2 Nf6 $19) 28... Kf8 29. Qh8+ (29. Nxe6+ Kf7 $18) 29... Ke7 30. Qxg7+ Kd6 31. Bf4+ Kc6 32. Qc3+ (32. Bxc7 Kxc7 33. Nxe6+ Kd6 $18) 32... Kb5 33. Qxc7 $18) 26. Rxd7 {[%emt 0:00:58]} Rf8 {[%emt 0:00:00] [#]} 27. g4 $1 {[%emt 0:01:12]} (27. Rxb7 f6 $11) 27... Qb1+ {[%emt 0:00:00]} 28. Kh2 {[%emt 0:00:23]} Qg6 {[%emt 0:00:00]} 29. Qxg6 {[%emt 0:00:16]} (29. Rxb7 Qxh5+ 30. gxh5 Rxa2 $11) 29... fxg6 {[%emt 0:00:00]} 30. Bc3 {[%emt 0:00:26]} Rxf2+ {[%emt 0:00:00]} 31. Kg3 {[%emt 0:04:24]} Rf6 {[%emt 0:00:00]} 32. Bxf6 {[%emt 0:00:32]} (32. Rxb7 Ra3 33. Kh4 Rxc3 $19) 32... gxf6 {[%emt 0:00:00]} 33. Nxe6 {[%emt 0:00:08]} Rxb4 {[%emt 0:00:00]} 34. Rg7+ {[%emt 0:00:00]} Kh8 {[%emt 0:00:00]} 35. Rxg6 {[%emt 0:00:00]} Ra4 {[%emt 0:00:00]} 36. Rxf6 {[%emt 0:00:00]} Rxa2 {[%emt 0:00:00]} 37. Rf8+ {[%emt 0:00:00]} Kh7 {[%emt 0:00:00]} 38. Rf7+ {[%emt 0:00:00]} (38. g5 $142 Ra1 39. Kg4 Rg1+ 40. Kf5 Rf1+ 41. Nf4 b5 42. Rb8 Kg7 43. Rb7+ (43. Rxb5 Kf8 44. Rb7 Ke8 45. g6 Kd8 46. g7 Rg1 47. Ng6 Rf1+ 48. Ke6 Kc8) 43... Kf8 44. g6 (44. Rxb5 Ke7 $18)) 38... Kg6 $18 {[%emt 0:00:00]} 39. Rxb7 {[%emt 0:00:00]} Kf6 {[%emt 0:00:00]} 40. Nf4 {[%emt 0:00:00]} Kg5 {[%emt 0:00:00]} 41. Rg7+ {[%emt 0:40:25]} Kf6 {[%emt 0:39:15]} 42. Rg6+ {[%emt 0:00:28]} ({And not} 42. Nxd5+ Kxg7 43. Nc7 Kf6 $11) 42... Kf7 {[%emt 0:00:10]} 43. Rd6 {[%emt 0:00:21]} 1-0

[Event "Fagernes GM Open Autumn 2024"]
[Site "Fagernes"]
[Date "2024.10.12"]
[Round "8.2"]
[White "Moksh Amit Doshi"]
[Black "Jumabayev, Rinat"]
[Result "1/2-1/2"]
[ECO "E11"]
[WhiteElo "2377"]
[BlackElo "2577"]
[Annotator "TA"]
[PlyCount "31"]
[EventDate "2024.10.03"]
[EventType "swiss"]
[EventCountry "NOR"]
[SourceTitle "playchess.com"]
[Source "ChessBase"]
[SourceQuality "1"]
[TimeControl "40/6000:2400+30"]

{[%evp 10,31,25,14,35,28,39,37,52,29,42,36,37,31,63,64,62,71,135,21,30,20,22,12]} 1. d4 {[%emt 0:05:09]} Nf6 {[%emt 0:00:00]} 2. c4 {[%emt 0:00:00]} e6 {[%emt 0:00:00]} 3. Nf3 {[%emt 0:00:00]} Bb4+ {[%emt 0:00:00]} 4. Nbd2 {[%emt 0:00:00]} O-O {[%emt 0:00:00]} 5. a3 {[%emt 0:00:00]} Be7 {[%emt 0:00:14]} 6. e4 {[%emt 0:00:00]} d6 {[%emt 0:00:00][%cal Oe6e5]} 7. Be2 {[%emt 0:00:00]} Nbd7 {[%emt 0:00:00]} 8. Qc2 {[%emt 0:02:15]} e5 {[%emt 0:00:00] White is slightly better.} 9. Nb1 {[%emt 0:02:42][%cal Bd2b1,Bb1c3,Bc3d5][%mdl 32]} a5 {[%emt 0:41:30][%cal Ba7a5,Ba5a4][%mdl 32]} 10. Nc3 {[%emt 0:03:01]} a4 {[%emt 0:10:50]} 11. O-O {[%emt 0:04:05]} Re8 {[%emt 0:02:06]} 12. dxe5 {[%emt 0:04:52]} ({But not} 12. Nxa4 exd4 13. Nxd4 Nxe4 $11) 12... dxe5 {[%emt 0:02:45]} 13. Rd1 {[%emt 0:00:39]} Bd6 {[%emt 0:00:00]} ({Black should play} 13... c6) 14. Bg5 {[%emt 0:09:38] White is more active.} (14. Nxa4 $16 {Strongly threatening c5.} b6 15. Be3) 14... Nc5 $11 {[%emt 0:01:31]} 15. Nd5 {[%emt 0:05:57]} Be6 {[%emt 0:00:00][%cal Oe6d5]} (15... Ncxe4 $2 {is the wrong capture.} 16. Nxf6+ Nxf6 17. c5 $18) 16. Bh4 {[%emt 0:15:23] Weighted Error Value: White=0.20 (precise) /Black=0.14 (very precise) .  Mistake:       	White=1     	Black=1      Inaccurate:     	---       	Black=1      OK:         	White=5     	Black=5} 1/2-1/2

[Event "Fagernes GM Open Autumn 2024"]
[Site "Fagernes"]
[Date "2024.10.12"]
[Round "8.3"]
[White "Stremavicius, Titas"]
[Black "Ghasi, Ameet K"]
[Result "1/2-1/2"]
[ECO "B07"]
[WhiteElo "2541"]
[BlackElo "2503"]
[Annotator "TA"]
[PlyCount "96"]
[EventDate "2024.10.03"]
[EventType "swiss"]
[EventCountry "NOR"]
[SourceTitle "playchess.com"]
[Source "ChessBase"]
[SourceQuality "1"]
[TimeControl "40/6000:2400+30"]

{[%evp 14,96,18,1,14,7,21,4,11,0,16,16,39,24,32,0,45,34,58,51,62,64,83,74,93,45,54,46,52,41,71,47,45,0,3,6,6,12,0,11,18,-25,-33,-20,-36,-41,0,0,0,-24,0,0,0,-32,0,0,0,-27,-29,-21,-21,-61,-40,-30,-29,-41,-37,-35,-35,-35,-36,-86,-83,-73,-89,-92,-43,-58,-18,-39,0,-57,0,-65,0]} 1. d4 {[%emt 0:01:43]} Nf6 {[%emt 0:01:29]} 2. Nf3 {[%emt 0:00:00]} g6 {[%emt 0:00:00]} 3. Nbd2 {[%emt 0:00:00]} Bg7 {[%emt 0:01:43]} 4. e4 {[%emt 0:00:00]} O-O {[%emt 0:00:00]} 5. Bd3 {[%emt 0:00:00]} d6 {[%emt 0:00:00]} 6. O-O {[%emt 0:00:17]} Nc6 {[%emt 0:00:00]} 7. c3 {[%emt 0:00:00]} e5 {[%emt 0:02:49]} 8. Re1 {[%emt 0:00:00]} a5 {[%emt 0:02:56]} 9. a4 {[%emt 0:00:00]} exd4 {[%emt 0:00:53]} 10. Nxd4 {[%emt 0:00:00]} Re8 {[%emt 0:14:29] The position is equal.} 11. h3 {[%emt 0:00:00]} Nd7 {[%emt 0:03:25]} 12. N2b3 {[%emt 0:04:35]} Nb6 {[%emt 0:09:32]} 13. Bf4 {[%emt 0:11:49]} Ne5 {[%emt 0:03:42]} 14. Bf1 {[%emt 0:00:37]} Bd7 {[%emt 0:08:19]} 15. Nd2 {[%emt 0:04:14]} c6 {[%emt 0:06:09]} 16. Bg3 {[%emt 0:04:30]} Bc8 {[%emt 0:08:09]} 17. Qc2 {[%emt 0:07:10]} Qc7 {[%emt 0:01:00]} 18. Rad1 {[%emt 0:00:37]} Qe7 {[%emt 0:08:14]} 19. Qb3 {[%emt 0:14:31]} (19. f4 $16 Ned7 20. Nc4) 19... Nbd7 $14 {[%emt 0:04:33]} 20. Qa3 {[%emt 0:12:03] And now f4 would win.} Nc5 {[%emt 0:01:36]} 21. f4 {[%emt 0:06:07]} Ned3 {[%emt 0:06:16][%cal Be5d3,Bd3b4,Bb4d5,Bd5e3][%mdl 32]} 22. Re3 {[%emt 0:00:00]} Nb4 {[%emt 0:00:19]} 23. N2f3 {[%emt 0:00:00]} (23. cxb4 $2 axb4 24. Qxb4 Rxa4 $19) (23. Re2 $5) 23... Nd5 {[%emt 0:00:45]} 24. Ree1 {[%emt 0:06:01]} (24. Bh4 Qc7 (24... Nxe3 25. Bxe7 Nxd1 26. e5 $14) 25. Ree1 (25. Nb5 $2 cxb5 26. Rxd5 b4 $17) 25... Rxe4 (25... Nxf4 26. Bg3 $11) (25... Nxe4 26. c4 $17) 26. Rxe4 Nxe4 $17) 24... Nxe4 {[%emt 0:06:14] [#]} 25. Rxe4 $1 {[%emt 0:00:00]} Qxe4 {[%emt 0:00:00]} 26. Re1 {[%emt 0:00:00] Dodges Qe3+} Ne3 {[%emt 0:00:00] Hoping for ...Bf5.} 27. Bf2 {[%emt 0:00:25]} (27. Nd2 $5 Qd5 28. Nc4 $16) 27... Qxf4 {[%emt 0:00:00][%cal Oc8h3]} 28. Nc2 {[%emt 0:00:11][%cal Rf2e3] [#]} Bxh3 $1 {[%emt 0:03:49]} 29. Bxe3 {[%emt 0:00:00]} Qg3 {[%emt 0:00:00] ...Bg4 would now be deadly.} 30. Bf2 {[%emt 0:00:00] Chess con chili.} Qf4 {[%emt 0:00:00]} 31. Be3 {[%emt 0:03:04]} Qg3 {[%emt 0:00:53]} 32. Bf2 {[%emt 0:00:02]} Qf4 {[%emt 0:00:00]} 33. Be3 {[%emt 0:00:00]} Rxe3 {[%emt 0:00:00]} 34. Rxe3 {[%emt 0:08:59]} Bf5 {[%emt 0:00:00] This pair of bishops is nice.} 35. Bd3 {[%emt 0:00:00]} Bxd3 {[%emt 0:00:00]} 36. Rxd3 {[%emt 0:00:00][%cal Od3d2]} Qc1+ {[%emt 0:00:00]} 37. Nce1 {[%emt 0:04:27][%cal Oa3b3]} Re8 {[%emt 0:00:00][%mdl 1024] Black has compensation.} 38. Kf1 {[%emt 0:00:41][%cal Oa3b3]} Be5 $36 {[%emt 0:00:14][%cal Bg7e5,Be5f4,Bf4e3][%mdl 2080] Black is more active.} 39. Kf2 {[%emt 0:03:01] Repels Bg3+} Bf4 {[%emt 0:01:22]} 40. Qb3 $1 {[%emt 0:00:00][%cal Oc3c4]} Be3+ {[%emt 0:00:06]} 41. Kf1 {[%emt 0:42:46][%cal Od3d1] Black must now prevent Rd1!} Bc5 $1 {[%emt 0:05:55] Threatens to win with ...Qh6.} 42. Qxb7 {[%emt 0:00:00]} (42. Rd1 $15 Re2 43. Rxc1 (43. Kxe2 $2 {gets mated.} Qe3+ 44. Kf1 Qf2#) 43... Rf2+ 44. Kg1 Rxb2+ (44... Rxf3+ $2 45. Kh2 $18) 45. Kf1 Rxb3 46. Nd3) 42... Qh6 $17 {[%emt 0:03:02] ( -> ...Qh1+)} 43. Rd4 {[%emt 0:00:00]} Bxd4 {[%emt 0:06:23]} 44. cxd4 {[%emt 0:00:00]} Qe3 {[%emt 0:09:42]} (44... Qc1 $17 {Strongly threatening ...Qc4+.} 45. b3 Qc3) 45. Qxc6 $15 {[%emt 0:00:00]} Qe2+ {[%emt 0:05:36]} 46. Kg1 {[%emt 0:00:00]} Qe3+ {[%emt 0:00:09]} (46... g5 $5 47. Nd3 (47. Qxd6 g4 $17) 47... Re6 48. Qc8+ Kg7 $17) 47. Kf1 {[%emt 0:00:00][%cal Of3e5]} Qe2+ {[%emt 0:01:25]} 48. Kg1 {[%emt 0:00:00]} Qe3+ {[%emt 0:08:52] Weighted Error Value: White=0.12 (very precise) /Black=0.15 (very precise) .  Mistake:       	White=2     	Black=2      Inaccurate:     	White=6     	Black=3      OK:         	White=13    	Black=15     Best:        	White=7     	Black=4      Strong:       	White=1     	Black=1      Brilliant:      	White=1     	---} (48... g5 $1 $15 49. Nd3 (49. Qxd6 g4 $17) 49... Re6 50. Qc8+ Kg7) 1/2-1/2

[Event "Fagernes GM Open Autumn 2024"]
[Site "Fagernes"]
[Date "2024.10.12"]
[Round "8.4"]
[White "Bazakutsa, Svyatoslav"]
[Black "Amar, Elham"]
[Result "0-1"]
[ECO "B38"]
[WhiteElo "2483"]
[BlackElo "2540"]
[Annotator "TA"]
[PlyCount "148"]
[EventDate "2024.10.03"]
[EventType "swiss"]
[EventCountry "NOR"]
[SourceTitle "playchess.com"]
[Source "ChessBase"]
[SourceQuality "1"]
[TimeControl "40/6000:2400+30"]

{[%evp 59,148,-136,-131,-170,-153,-160,-151,-148,-125,-357,-332,-333,-341,-349,-330,-335,-334,-336,-347,-315,-305,-349,-316,-312,-238,-208,-195,-484,-500,-474,-440,-652,-595,-653,-638,-721,-702,-846,-663,-905,-837,-879,-877,-943,-973,-1348,-1183,-1107,-1106,-1226,-1225,-1267,-1284,-2181,-2159,-29984,-29984,-29984,-29984,-29996,-29982,-29982,-29983,-29983,-29984,-29984,-29983,-29983,-29984,-29986,-29987,-29987,-29988,-29988,-29989,-29989,-29990,-29991,-29992,-29992,-29993,-29993,-29993,-29993,-29994,-29994,-29994,-29997,-29998,-29998,-29999]} 1. c4 {[%emt 0:07:43]} Nf6 {[%emt 0:00:22]} 2. Nc3 {[%emt 0:00:00]} g6 {[%emt 0:00:00]} 3. e4 {[%emt 0:00:00]} d6 {[%emt 0:00:00]} 4. d4 {[%emt 0:00:00]} Bg7 {[%emt 0:00:00]} 5. Nf3 {[%emt 0:00:00]} O-O {[%emt 0:00:00]} 6. h3 {[%emt 0:00:00]} c5 {[%emt 0:03:03]} 7. Be3 {[%emt 0:00:00]} cxd4 {[%emt 0:04:09]} 8. Nxd4 {[%emt 0:00:00]} Nc6 {[%emt 0:02:00] 8...Nc6 is better than 8...b6.} 9. Be2 {[%emt 0:00:00]} Nxd4 {[%emt 0:10:20] B38: Sicilian: Maroczy Bind with 5...Bg7 and 7...0-0.} 10. Bxd4 {[%emt 0:00:00]} Be6 {[%emt 0:00:00]} 11. O-O {[%emt 0:00:00]} a6 {[%emt 0:13:50]} 12. Qc2 {[%emt 0:20:34]} Rc8 {[%emt 0:08:20]} 13. b3 {[%emt 0:10:14]} Qa5 {[%emt 0:13:25]} 14. Qb2 $146 {[%emt 0:13:50]} ({Predecessor:} 14. a4 d5 15. b4 Qd8 16. exd5 Bxd5 17. cxd5 Nxd5 18. Bxg7 Kxg7 19. Ra3 Qc7 20. Qb2 {1-0 Pham,K (2128)-Petrovic,A (1736) EU-ch Online U16 rapid 2020 (6)}) 14... Bxh3 {[%emt 0:06:30]} 15. Nd5 {[%emt 0:23:07]} Nxd5 {[%emt 0:00:00]} 16. Bxg7 {[%emt 0:00:00]} Nf4 {[%emt 0:00:00]} 17. Bh6 {[%emt 0:00:00]} Qe5 {[%emt 0:00:00]} 18. Qxe5 {[%emt 0:09:27]} Nxe2+ {[%emt 0:00:00]} 19. Kh2 {[%emt 0:00:00]} dxe5 {[%emt 0:00:00]} 20. Bxf8 {[%emt 0:00:00]} Bxg2 {[%emt 0:00:00]} 21. Kxg2 {[%emt 0:00:00]} Kxf8 {[%emt 0:00:00]} 22. Rad1 {[%emt 0:00:35]} Ke8 {[%emt 0:00:00]} 23. Rd2 {[%emt 0:00:26]} Nf4+ {[%emt 0:00:00]} 24. Kg3 {[%emt 0:00:00]} Ne6 {[%emt 0:00:00]} 25. Rfd1 {[%emt 0:01:41]} f6 {[%emt 0:00:00]} 26. Kg2 {[%emt 0:01:55]} h5 {[%emt 0:00:09]} 27. f3 {[%emt 0:00:11]} Rc7 {[%emt 0:00:19]} 28. Kg3 {[%emt 0:00:34]} g5 {[%emt 0:07:06]} 29. Rh1 {[%emt 0:01:21]} h4+ {[%emt 0:00:00]} 30. Kg4 {[%emt 0:01:58]} Nd4 {[%emt 0:06:10]} 31. f4 {[%emt 0:00:56]} gxf4 {[%emt 0:00:00]} 32. Rxh4 {[%emt 0:00:00]} Kf7 {[%emt 0:00:00]} 33. Rh8 {[%emt 0:01:37] [#]} b5 $1 {[%emt 0:00:00]} 34. Rdh2 $2 {[%emt 0:01:41]} (34. Rd3 $17) 34... bxc4 $19 {[%emt 0:00:00]} 35. bxc4 {[%emt 0:00:00]} Rxc4 {[%emt 0:00:00]} 36. R2h7+ {[%emt 0:00:00]} Ke6 {[%emt 0:00:00]} 37. Rb8 {[%emt 0:00:58]} Nc6 {[%emt 0:02:37]} 38. Rb6 {[%emt 0:00:00]} a5 {[%emt 0:00:00]} 39. Rh2 {[%emt 0:00:00]} Kd6 {[%emt 0:02:00]} 40. Kf5 {[%emt 0:00:00]} Kc7 {[%emt 0:01:05]} 41. Rhb2 {[%emt 0:41:20]} f3 {[%emt 0:50:31]} 42. Rb7+ {[%emt 0:00:00]} Kd6 {[%emt 0:00:00]} 43. Rd2+ $2 {[%emt 0:00:00]} (43. Kg4 {was worth a try.}) 43... Nd4+ $19 {[%emt 0:00:00]} 44. Kg4 {[%emt 0:00:00]} e6 {[%emt 0:00:00]} 45. Ra7 {[%emt 0:00:00]} (45. Rb6+ $142 Kc5 46. Rb7) 45... f5+ $19 {[%emt 0:00:00]} 46. exf5 {[%emt 0:00:00]} exf5+ {[%emt 0:00:00]} 47. Kg3 {[%emt 0:00:00]} Ra4 {[%emt 0:00:00]} 48. Rf7 {[%emt 0:00:00]} Ke6 {[%emt 0:00:00]} 49. Rf8 {[%emt 0:00:00]} f4+ {[%emt 0:00:00]} 50. Kg4 {[%emt 0:00:00]} Kd5 {[%emt 0:00:00]} 51. Re8 {[%emt 0:00:00]} Ke4 {[%emt 0:00:00]} 52. Rh2 {[%emt 0:00:00]} Rc4 {[%emt 0:00:00]} 53. Rh5 {[%emt 0:00:00]} Nc6 {[%emt 0:00:00]} 54. Rh1 {[%emt 0:00:00]} Rc2 {[%emt 0:00:00]} 55. Rf1 {[%emt 0:00:00]} Nd4 {[%emt 0:00:00]} 56. Rb8 {[%emt 0:00:00]} Nf5 {[%emt 0:00:00]} 57. Kh3 {[%emt 0:00:00]} Ne3 {[%emt 0:00:00]} 58. Rh1 {[%emt 0:00:00]} f2 {[%emt 0:00:00]} 59. Rbb1 {[%emt 0:00:00]} Rxa2 {[%emt 0:00:00]} 60. Kh4 {[%emt 0:00:00]} f1=Q {[%emt 0:00:00]} 61. Rhxf1 {[%emt 0:00:00]} Nxf1 {[%emt 0:00:00]} 62. Rxf1 {[%emt 0:00:00]} Rh2+ {[%emt 0:00:00]} 63. Kg5 {[%emt 0:00:00]} f3 {[%emt 0:00:00]} 64. Kg4 {[%emt 0:00:00]} Rg2+ {[%emt 0:00:00]} 65. Kh3 {[%emt 0:00:00]} Kf4 {[%emt 0:00:00]} 66. Ra1 {[%emt 0:00:00]} Rg8 {[%emt 0:00:00]} 67. Kh2 {[%emt 0:00:00]} f2 {[%emt 0:00:00]} 68. Ra4+ {[%emt 0:00:00]} e4 {[%emt 0:00:00]} 69. Rxa5 {[%emt 0:00:00]} f1=R {[%emt 0:00:00]} 70. Ra7 {[%emt 0:00:00]} Kf3 {[%emt 0:00:00]} 71. Rf7+ {[%emt 0:00:00]} Ke2 {[%emt 0:00:00]} 72. Ra7 {[%emt 0:00:00]} e3 {[%emt 0:00:00]} 73. Ra2+ {[%emt 0:00:00]} Kf3 {[%emt 0:00:00]} 74. Ra7 {[%emt 0:00:00]} Rh8+ {[%emt 0:00:00]} 0-1